bitfinex/quotes_BTCUSD_20260117
["timestamp","ask_amount","ask_price","bid_price","bid_amount"]
[1768692999334,0.00054228,95133.0,95130.0,0.01051193]
[1768693003796,0.00054228,95133.0,95129.0,0.06307211]
[1768693003797,0.01105387,95133.0,95129.0,0.06307224]
[1768693004558,0.01105387,95133.0,95129.0,0.01051204]
[1768693005001,0.06361188,95133.0,95129.0,0.01051204]
[1768693005199,0.01051171,95132.0,95129.0,0.01046669]
[1768693005455,0.01051182,95131.0,95125.0,0.01051248]
[1768693005654,0.01051182,95131.0,95127.0,0.06307351]
[1768693005800,0.01051182,95131.0,95127.0,0.01051226]
[1768693006000,0.01051182,95131.0,95128.0,0.01051215]
[1768693006627,0.01051171,95132.0,95129.0,0.01051204]
[1768693008436,0.01051171,95132.0,95128.0,0.06307277]
[1768693010076,0.01051171,95132.0,95128.0,0.06302742]
[1768693011155,0.01051171,95132.0,95128.0,0.0104668]
[1768693012696,0.11066163,95139.0,95133.0,0.01051159]
[1768693012901,0.121173,95135.0,95132.0,0.01051171]
[1768693013986,0.17372993,95135.0,95132.0,0.01051171]
[1768693017262,0.01051148,95134.0,95130.0,0.01051193]
[1768693017518,0.01051148,95134.0,95131.0,0.01051182]
[1768693024395,0.06306898,95134.0,95131.0,0.01051182]
[1768693024730,0.01051148,95134.0,95131.0,0.01051182]
[1768693024947,0.01051126,95136.0,95133.0,0.01051159]
[1768693025100,0.01051126,95136.0,95133.0,0.01046624]
[1768693025325,0.01051137,95135.0,95132.0,0.01051171]
[1768693025488,0.01051126,95136.0,95133.0,0.01051159]
[1768693025694,0.12117278,95137.0,95133.0,0.01051159]
[1768693026334,0.01051126,95136.0,95133.0,0.01051159]
[1768693026548,0.11066163,95137.0,95134.0,0.01051148]
[1768693027186,0.11066163,95137.0,95134.0,0.06306879]
[1768693027393,0.11066163,95137.0,95134.0,0.01051148]
[1768693028869,0.11066163,95137.0,95134.0,0.06306889]
[1768693030444,0.12125701,95139.0,95135.0,0.01051137]
[1768693032268,0.12125701,95139.0,95135.0,0.01046603]
[1768693033296,0.01051104,95138.0,95134.0,0.01051148]
[1768693034308,0.06306651,95138.0,95134.0,0.01051148]
[1768693034717,0.01051115,95137.0,95134.0,0.01051148]
[1768693035248,0.01051104,95138.0,95134.0,0.0630687]
[1768693035429,0.01051104,95138.0,95135.0,0.06306809]
[1768693036374,0.01051104,95138.0,95135.0,0.01051137]
[1768693037358,0.06306631,95138.0,95135.0,0.01051137]
[1768693038238,0.01051104,95138.0,95135.0,0.01051137]
[1768693038990,8.445e-05,95139.0,95136.0,0.01051126]
[1768693039420,8.445e-05,95139.0,95136.0,0.06306713]
[1768693040778,0.01059538,95139.0,95135.0,0.06306808]
[1768693040990,0.01059538,95139.0,95135.0,0.01051137]
[1768693041815,0.01059538,95139.0,95135.0,0.06306826]
[1768693042014,0.01059538,95139.0,95136.0,0.01051126]
[1768693045751,0.01059538,95139.0,95136.0,0.01046593]
[1768693046291,0.01059538,95139.0,95136.0,0.0104206]
[1768693046798,0.01059538,95139.0,95136.0,0.01037527]
[1768693047430,0.01051104,95138.0,95135.0,0.01051137]
[1768693047808,0.01051104,95138.0,95135.0,0.06306824]
[1768693048033,0.01059538,95139.0,95136.0,0.06306757]
[1768693048234,0.01059538,95139.0,95136.0,0.01051126]
[1768693056668,0.01059538,95139.0,95136.0,0.06306758]
[1768693059965,0.01059538,95139.0,95136.0,0.06302224]
[1768693060174,8.445e-05,95139.0,95119.0,0.24033608]
[1768693060369,0.01051215,95128.0,95121.0,0.01051292]
[1768693060573,0.01051204,95129.0,95117.0,0.05256639]
[1768693060574,0.01051281,95122.0,95117.0,0.05256639]
[1768693060798,0.01051281,95122.0,95116.0,0.1274]
[1768693060799,0.01051314,95119.0,95116.0,0.1274]
[1768693061338,0.01051303,95120.0,95117.0,0.01051336]
[1768693061721,0.06307826,95120.0,95116.0,0.13791347]
[1768693061860,0.06307891,95119.0,95116.0,0.13791347]
[1768693062067,0.01051369,95114.0,95111.0,0.01051403]
[1768693062276,0.0105138,95113.0,95109.0,0.01067455]
[1768693062547,0.0525707,95110.0,95109.0,0.0001603]
[1768693062816,0.05205252,95110.0,95109.0,0.0001603]
[1768693063001,0.05205252,95110.0,95105.0,0.01051469]
[1768693063002,0.11056359,95109.0,95105.0,0.01051469]
[1768693063209,0.11056359,95109.0,95104.0,0.06308831]
[1768693063210,0.12107784,95109.0,95104.0,0.06308831]
[1768693063407,0.01051436,95108.0,95105.0,0.01051469]
[1768693063768,5.461e-05,95108.0,95105.0,0.01051469]
[1768693064797,0.01056897,95108.0,95105.0,0.01051469]
[1768693066123,0.01051447,95107.0,95104.0,0.0105148]
[1768693066308,5.461e-05,95108.0,95103.0,0.01051491]
[1768693066534,5.461e-05,95108.0,95105.0,0.052573]
[1768693067067,5.461e-05,95108.0,95105.0,0.06308816]
[1768693067274,0.01051325,95118.0,95110.0,0.01051414]
[1768693067490,0.01051325,95118.0,95113.0,0.0105138]
[1768693067913,0.06307964,95118.0,95113.0,0.0630828]
[1768693068118,0.01051325,95118.0,95114.0,0.01051369]
[1768693068365,0.13791336,95117.0,95114.0,0.01051369]
[1768693069157,0.01051336,95117.0,95114.0,0.01051369]
[1768693071614,0.01051347,95116.0,95113.0,0.0105138]
[1768693071821,0.06308097,95116.0,95112.0,0.01051392]
[1768693072230,0.01051358,95115.0,95112.0,0.01051392]
[1768693072500,0.06308159,95115.0,95112.0,0.01051392]
[1768693072948,0.01051369,95114.0,95111.0,0.01051403]
[1768693075274,0.0630822,95114.0,95111.0,0.01051403]
[1768693077460,0.0105138,95113.0,95110.0,0.01098681]
[1768693078800,0.01051358,95115.0,95110.0,0.01098681]
[1768693079329,0.06308114,95116.0,95112.0,0.01051392]
[1768693081497,0.06308161,95115.0,95111.0,0.01051403]
[1768693083837,0.01051369,95114.0,95111.0,0.01051403]
[1768693086426,0.0630822,95114.0,95111.0,0.01051403]
[1768693089008,0.0105138,95113.0,95110.0,0.01098681]
[1768693089644,0.0105138,95113.0,95110.0,0.00047267]
[1768693089849,0.05257015,95111.0,95110.0,0.00047267]
[1768693090579,0.05256974,95112.0,95110.0,0.00047267]
[1768693090796,0.0105138,95113.0,95110.0,0.00047267]
[1768693091218,0.0104231,95113.0,95110.0,0.01098681]
[1768693091888,0.0104231,95113.0,95110.0,0.00964734]
[1768693094220,0.0104231,95113.0,95110.0,0.00839042]
[1768693094457,0.0104231,95113.0,95110.0,0.00824358]
[1768693100491,0.0103324,95113.0,95110.0,0.00824358]
[1768693102779,0.01051358,95115.0,95111.0,0.01051403]
[1768693103437,0.05256637,95118.0,95113.0,0.05256858]
[1768693103662,0.06307902,95119.0,95114.0,0.0630819]
[1768693103881,0.01051314,95119.0,95116.0,0.01051347]
[1768693104094,0.01051281,95122.0,95117.0,0.10157295]
[1768693104281,0.05256462,95121.0,95117.0,0.01051336]
[1768693104522,0.0630785,95120.0,95116.0,0.01051347]
[1768693104948,0.01051314,95119.0,95116.0,0.01051347]
[1768693105365,0.06307899,95119.0,95116.0,0.01051347]
[1768693105820,0.01051347,95116.0,95111.0,0.13791403]
[1768693106052,0.01051347,95116.0,95112.0,0.05256929]
[1768693106293,0.01051347,95116.0,95111.0,0.13791403]
[1768693106294,0.01051347,95116.0,95111.0,0.19048418]
[1768693106530,0.01051347,95116.0,95112.0,0.05256948]
[1768693107321,0.06307963,95118.0,95113.0,0.06308271]
[1768693109330,0.01051314,95119.0,95115.0,0.01051358]
[1768693109544,0.01051303,95120.0,95117.0,0.01051336]
[1768693109964,0.11823611,95121.0,95118.0,0.01051325]
[1768693110391,0.10772319,95121.0,95118.0,0.06307912]
[1768693110605,0.10772319,95121.0,95118.0,0.01051325]
[1768693111004,0.10772319,95121.0,95118.0,0.0630791]
[1768693111205,0.10772319,95121.0,95118.0,0.01051325]
[1768693111520,0.10772319,95121.0,95118.0,0.06307931]
[1768693111937,0.10772319,95121.0,95119.0,0.05256556]
[1768693114060,0.10772319,95121.0,95118.0,0.01051325]
[1768693114225,0.01051314,95119.0,95115.0,0.01051358]
[1768693114815,0.01051314,95119.0,95114.0,0.01051369]
[1768693115015,0.01051325,95118.0,95115.0,0.01051358]
[1768693115442,0.06307976,95118.0,95114.0,0.01051369]
[1768693115998,0.01051325,95118.0,95114.0,0.01051369]
[1768693117257,0.06307967,95118.0,95114.0,0.01051369]
[1768693119735,0.06307967,95118.0,95109.0,0.08206797]
[1768693119736,0.01051369,95114.0,95109.0,0.13463876]
[1768693119953,0.01098632,95114.0,95110.0,0.01051414]
[1768693121060,0.01051392,95112.0,95107.0,0.01051447]
[1768693121220,0.11598031,95110.0,95107.0,0.06308632]
[1768693121960,0.12649423,95112.0,95108.0,0.01051436]
[1768693122542,0.17906385,95112.0,95108.0,0.01051436]
[1768693123594,0.11598031,95107.0,95104.0,0.1274]
[1768693124000,0.11598031,95107.0,95104.0,0.17997359]
[1768693124202,0.17906582,95109.0,95105.0,0.01051469]
[1768693124419,0.12649456,95109.0,95105.0,0.01051469]
[1768693124798,0.12649456,95109.0,95106.0,0.01051458]
[1768693124956,0.11598031,95109.0,95106.0,0.01051458]
[1768693125738,0.0105148,95104.0,95101.0,0.00047307]
[1768693126546,0.11598031,95103.0,95101.0,0.00047307]
[1768693127299,0.168555,95103.0,95101.0,0.00047307]
[1768693128117,0.11598031,95103.0,95101.0,0.00047307]
[1768693129868,0.16855493,95103.0,95101.0,0.00047307]
[1768693130232,0.11598031,95103.0,95101.0,0.00047307]
[1768693130353,0.16855502,95103.0,95101.0,0.00047307]
[1768693131019,0.11598031,95103.0,95101.0,0.00047307]
[1768693131304,0.06308895,95104.0,95101.0,0.00047307]
[1768693132320,0.0105148,95104.0,95101.0,0.00047307]
[1768693132522,0.01051458,95106.0,95102.0,0.01051502]
[1768693132729,0.01051458,95106.0,95103.0,0.01051491]
[1768693133348,0.01051458,95106.0,95103.0,0.06308946]
[1768693136583,0.12649467,95108.0,95104.0,0.0630887]
[1768693136879,0.01051447,95107.0,95104.0,0.0105148]
[1768693137130,0.01051458,95106.0,95103.0,0.01051491]
[1768693137671,0.0105148,95104.0,95101.0,0.0109882]
[1768693138240,0.01051502,95102.0,95099.0,0.0001603]
[1768693138439,0.06309015,95102.0,95099.0,0.0001603]
[1768693138664,0.05257588,95101.0,95099.0,0.0001603]
[1768693140405,0.05257623,95100.0,95099.0,0.0001603]
[1768693140606,0.05257623,95100.0,95093.0,0.01051602]
[1768693140607,0.01051602,95093.0,95090.0,0.01051635]
[1768693140815,0.01051591,95094.0,95090.0,0.13791635]
[1768693141063,0.01051591,95094.0,95090.0,0.19049801]
[1768693141669,0.01051591,95094.0,95090.0,0.13791635]
[1768693141849,0.01051591,95094.0,95090.0,0.190498]
[1768693142290,0.01051591,95094.0,95091.0,0.01051624]
[1768693143005,0.01051591,95094.0,95091.0,0.08206996]
[1768693143753,0.01051579,95095.0,95092.0,0.06309675]
[1768693144075,0.01051579,95095.0,95092.0,0.01051613]
[1768693145244,0.01051591,95094.0,95091.0,0.01051624]
[1768693145444,0.01051579,95095.0,95092.0,0.01051613]
[1768693146775,0.01051579,95095.0,95092.0,0.06309673]
[1768693147500,0.01051579,95095.0,95092.0,0.01051613]
[1768693151753,0.06309494,95095.0,95091.0,0.01051624]
[1768693152264,0.01051579,95095.0,95091.0,0.01051624]
[1768693152721,0.0630993,95089.0,95084.0,0.13791701]
[1768693152949,0.01051613,95092.0,95088.0,0.05258284]
[1768693153681,0.01051613,95092.0,95089.0,0.01051646]
[1768693153906,0.01051624,95091.0,95087.0,0.06310003]
[1768693154115,0.01051624,95091.0,95088.0,0.01051657]
[1768693154566,0.16964976,95091.0,95088.0,0.01051657]
[1768693155181,0.10655218,95091.0,95088.0,0.01051657]
[1768693155612,0.11706842,95091.0,95088.0,0.01051657]
[1768693156749,0.1696498,95091.0,95088.0,0.01051657]
[1768693157003,0.01051635,95090.0,95087.0,0.01051668]
[1768693157231,0.01051646,95089.0,95086.0,0.01051679]
[1768693157470,0.0630989,95089.0,95086.0,0.01051679]
[1768693157682,0.16965108,95089.0,95086.0,0.01051679]
[1768693157874,0.16965108,95089.0,95084.0,0.01051701]
[1768693157875,0.01051657,95088.0,95084.0,0.01051701]
[1768693158078,0.01051657,95088.0,95084.0,0.06310182]
[1768693158304,0.01051624,95091.0,95088.0,0.01051657]
[1768693159761,0.10655218,95092.0,95088.0,0.01051657]
[1768693159970,0.10655218,95092.0,95089.0,0.01051646]
[1768693160188,0.10655218,95092.0,95090.0,0.05258131]
[1768693161462,0.01051535,95099.0,95094.0,0.01051591]
[1768693161680,0.15912954,95098.0,95094.0,0.01051591]
[1768693162274,0.01051557,95097.0,95094.0,0.01051591]
[1768693164911,0.01051557,95097.0,95091.0,0.01051624]
[1768693164912,0.01051568,95096.0,95091.0,0.01051624]
[1768693166296,0.01051568,95096.0,95092.0,0.01051613]
[1768693166873,0.01051568,95096.0,95092.0,0.06309677]
[1768693167825,0.01051568,95096.0,95092.0,0.01051613]
[1768693168380,0.06309431,95096.0,95092.0,0.01051613]
[1768693169758,0.01051557,95097.0,95093.0,0.06309612]
[1768693169925,0.06309349,95097.0,95093.0,0.01051602]
[1768693170143,0.06309418,95096.0,95091.0,0.01051624]
[1768693170343,0.05257946,95095.0,95091.0,0.01051624]
[1768693170541,0.06309418,95096.0,95091.0,0.01051624]
[1768693170542,0.06309461,95096.0,95091.0,0.01051624]
[1768693170981,0.06309461,95096.0,95091.0,0.06309743]
[1768693171180,0.01051579,95095.0,95091.0,0.06309743]
[1768693171609,0.06309494,95095.0,95091.0,0.01051624]
[1768693171990,0.01051591,95094.0,95091.0,0.01051624]
[1768693174021,0.01051568,95096.0,95092.0,0.01051613]
[1768693174233,0.01051568,95096.0,95092.0,0.0630963]
[1768693174649,0.01051568,95096.0,95093.0,0.05258001]
[1768693175295,0.01051568,95096.0,95093.0,0.01051602]
[1768693175539,0.01051568,95096.0,95093.0,0.00973275]
[1768693177008,0.01051568,95096.0,94997.0,0.30185959]
[1768693177009,0.01051635,95090.0,95077.0,0.10816258]
[1768693177222,0.01051668,95087.0,95084.0,0.01051701]
[1768693177421,0.26516805,95090.0,95085.0,0.0105169]
[1768693177422,0.01051635,95090.0,95085.0,0.0105169]
[1768693177685,0.06309946,95088.0,95084.0,0.01051701]
[1768693177855,0.01051657,95088.0,95084.0,0.01051701]
[1768693178052,0.01051657,95088.0,95085.0,0.0105169]
[1768693181380,0.01051646,95089.0,95085.0,0.0631014]
[1768693182490,0.10915469,95094.0,95074.0,0.0002]
[1768693182861,0.0631068,95077.0,95074.0,0.0002]
[1768693183080,0.0525896,95076.0,95074.0,0.0002]
[1768693183256,0.01051779,95077.0,95074.0,0.0002]
[1768693183477,0.06310681,95077.0,95074.0,0.0002]
[1768693183683,0.01051779,95077.0,95074.0,0.0002]
[1768693184115,0.01051779,95077.0,95074.0,0.00025461]
[1768693184306,0.01051768,95078.0,95074.0,0.01077273]
[1768693185069,0.01051768,95078.0,95075.0,0.01051801]
[1768693185273,0.01051779,95077.0,95074.0,0.01077273]
[1768693186034,0.01051756,95079.0,95075.0,0.01051801]
[1768693186237,0.01051779,95077.0,95074.0,0.01077273]
[1768693187876,0.06310697,95077.0,95074.0,0.00025461]
[1768693188254,0.01051779,95077.0,95074.0,0.00025461]
[1768693189086,0.06310696,95077.0,95074.0,0.00025461]
[1768693189250,0.01051779,95077.0,95074.0,0.00025461]
[1768693189457,0.06310706,95077.0,95074.0,0.00025461]
[1768693190325,0.01051779,95077.0,95074.0,0.00025461]
[1768693190554,0.0525895,95076.0,95074.0,0.00025461]
[1768693191992,0.01051779,95077.0,95074.0,0.00025461]
[1768693191993,0.05259006,95075.0,95074.0,0.00025461]
[1768693192192,0.06310949,95073.0,95070.0,0.1276003]
[1768693192540,0.01051823,95073.0,95070.0,0.12765]
[1768693193126,0.01051823,95073.0,95070.0,0.13816856]
[1768693193333,0.06310822,95075.0,95070.0,0.19076137]
[1768693193954,0.06310885,95074.0,95070.0,0.13816856]
[1768693194370,0.01051812,95074.0,95070.0,0.13816856]
[1768693194751,0.06310874,95074.0,95070.0,0.13816856]
[1768693194962,0.01051823,95073.0,95070.0,0.12765]
[1768693195344,0.01051823,95073.0,95070.0,0.13816856]
[1768693195547,0.01051823,95073.0,95070.0,0.01072856]
[1768693198085,0.01051823,95073.0,95069.0,0.0002]
[1768693198086,0.01051834,95072.0,95069.0,0.0002]
[1768693198266,0.01051834,95072.0,95069.0,0.00027458]
[1768693198633,0.01051834,95072.0,95069.0,0.01079325]
[1768693200274,0.06311022,95072.0,95069.0,0.01079325]
[1768693200688,0.05259268,95071.0,95069.0,0.00027458]
[1768693201116,0.0631102,95072.0,95069.0,0.00027458]
[1768693201316,0.01051823,95073.0,95069.0,0.00027458]
[1768693201517,0.01051834,95072.0,95069.0,0.01079325]
[1768693201693,0.0105179,95076.0,95069.0,0.01079325]
[1768693201694,0.052588,95079.0,95074.0,0.01051812]
[1768693201897,0.0105169,95085.0,95079.0,0.11650757]
[1768693202253,0.01051701,95084.0,95081.0,0.01051734]
[1768693202582,0.0105169,95085.0,95081.0,0.06310388]
[1768693202870,0.0105169,95085.0,95081.0,0.01051734]
[1768693203060,0.0105169,95085.0,95081.0,0.06310398]
[1768693203418,0.01051679,95086.0,95082.0,0.06310335]
[1768693204319,0.0105169,95085.0,95082.0,0.01051723]
[1768693205511,0.01051701,95084.0,95080.0,0.01051745]
[1768693206191,0.01051701,95084.0,95081.0,0.01051734]
[1768693206673,0.01051679,95086.0,95083.0,0.01051712]
[1768693206854,0.06310209,95084.0,95080.0,0.01051745]
[1768693207071,0.01051701,95084.0,95080.0,0.06310451]
[1768693207260,0.0631021,95084.0,95080.0,0.01051745]
[1768693207463,0.0631021,95084.0,95080.0,0.01047211]
[1768693207841,0.01051701,95084.0,95080.0,0.06305923]
[1768693208047,0.01051701,95084.0,95081.0,0.01051734]
[1768693208448,0.01051701,95084.0,95081.0,0.01033186]
[1768693208695,0.06310219,95084.0,95081.0,0.01033186]
[1768693209053,0.01051701,95084.0,95081.0,0.01033186]
[1768693210214,0.01051712,95083.0,95079.0,0.01047222]
[1768693210426,0.01051712,95083.0,95079.0,0.06306005]
[1768693212257,0.01051712,95083.0,95080.0,0.01051745]
[1768693213407,0.01051701,95084.0,95081.0,0.01051734]
[1768693213654,0.01051679,95086.0,95082.0,0.01051723]
[1768693213845,0.01051679,95086.0,95082.0,0.01047189]
[1768693214834,0.06310078,95086.0,95082.0,0.01047189]
[1768693216343,0.01051679,95086.0,95082.0,0.01047189]
[1768693217455,0.06310105,95086.0,95082.0,0.01047189]
[1768693219566,0.01051679,95086.0,95083.0,0.01051712]
[1768693219776,0.01051624,95091.0,95086.0,0.01051679]
[1768693219990,0.13795613,95092.0,95089.0,0.01051646]
[1768693220202,0.19053708,95092.0,95088.0,0.01051657]
[1768693220416,0.01051624,95091.0,95088.0,0.01051657]
[1768693221281,0.01051635,95090.0,95086.0,0.01051679]
[1768693221695,0.01051635,95090.0,95087.0,0.01051668]
[1768693221955,0.01051646,95089.0,95086.0,0.01051679]
[1768693222399,0.06309952,95088.0,95083.0,0.06310266]
[1768693222623,0.01051657,95088.0,95085.0,0.0105169]
[1768693223272,0.01051646,95089.0,95086.0,0.01051679]
[1768693223493,0.01051635,95090.0,95087.0,0.01051668]
[1768693226124,0.01051646,95089.0,95085.0,0.0105169]
[1768693226353,0.01051635,95090.0,95086.0,0.01051679]
[1768693227207,0.01051635,95090.0,95086.0,0.01047145]
[1768693227730,0.06309818,95090.0,95086.0,0.01047145]
[1768693229002,0.01051635,95090.0,95086.0,0.01047145]
[1768693229397,0.01051624,95091.0,95087.0,0.01051668]
[1768693230611,0.01051635,95090.0,95087.0,0.01051668]
[1768693233970,0.01051635,95090.0,95087.0,0.06309997]
[1768693234675,0.01051624,95091.0,95088.0,0.01051657]
[1768693235254,0.01051613,95092.0,95089.0,0.01051646]
[1768693235927,0.01067621,95094.0,95090.0,0.01051635]
[1768693236118,0.06325584,95094.0,95090.0,0.01051635]
[1768693237190,0.01067621,95094.0,95090.0,0.06309793]
[1768693238614,0.01067621,95094.0,95091.0,0.06309731]
[1768693238790,0.01067621,95094.0,95091.0,0.01051624]
[1768693240367,0.06325577,95094.0,95090.0,0.01051635]
[1768693240542,0.01067621,95094.0,95090.0,0.01051635]
[1768693240878,0.01067621,95094.0,95090.0,0.0630981]
[1768693241144,0.0001603,95094.0,95091.0,0.06309742]
[1768693241263,0.0001603,95094.0,95091.0,0.01051624]
[1768693242887,0.0001603,95094.0,95092.0,0.0525801]
[1768693245084,0.0001603,95094.0,95092.0,0.05239478]
[1768693245301,0.0001603,95094.0,95091.0,0.06309719]
[1768693246511,0.0001603,95094.0,95091.0,0.06309732]
[1768693248888,0.01067621,95094.0,95089.0,0.01051646]
[1768693249535,0.06325594,95094.0,95089.0,0.06309835]
[1768693249737,0.01051602,95093.0,95090.0,0.01051635]
[1768693249940,0.01051602,95093.0,95090.0,0.06309809]
[1768693251284,0.0001603,95094.0,95091.0,0.06309721]
[1768693251489,0.0001603,95094.0,95092.0,0.0525805]
[1768693251708,0.0001603,95094.0,95091.0,0.01051624]
[1768693252969,0.01067621,95094.0,95091.0,0.01051624]
[1768693253878,0.0001603,95094.0,95091.0,0.01051624]
[1768693255230,0.0001603,95094.0,95091.0,0.06309739]
[1768693256790,0.0001603,95094.0,95091.0,0.01051624]
[1768693258385,0.0001603,95094.0,95091.0,0.06309738]
[1768693260227,0.0001603,95094.0,95092.0,0.05258057]
[1768693260430,0.0001603,95094.0,95091.0,0.06309733]
[1768693260638,0.0001603,95094.0,95092.0,0.05258065]
[1768693261075,0.0001603,95094.0,95093.0,0.0525801]
[1768693261525,0.01051513,95101.0,95096.0,0.01051568]
[1768693261744,0.0001603,95104.0,95093.0,0.01051602]
[1768693261745,0.0001603,95104.0,95101.0,0.01051513]
[1768693261962,0.01051425,95109.0,95103.0,0.16792202]
[1768693261963,0.06308562,95109.0,95103.0,0.16792202]
[1768693262388,0.06308562,95109.0,95103.0,0.06308937]
[1768693263008,0.0109874,95108.0,95104.0,0.06308871]
[1768693263231,0.0635595,95108.0,95104.0,0.0105148]
[1768693263881,0.01051425,95109.0,95104.0,0.0105148]
[1768693263882,0.06308561,95109.0,95105.0,0.01051469]
[1768693264108,0.01051436,95108.0,95104.0,0.0105148]
[1768693264975,0.06308622,95108.0,95104.0,0.0105148]
[1768693265186,0.01051447,95107.0,95104.0,0.0105148]
[1768693266252,0.01051436,95108.0,95105.0,0.01051469]
[1768693267534,0.01051436,95108.0,95105.0,0.00771438]
[1768693270018,0.01051436,95108.0,95105.0,0.0602878]
[1768693270135,0.01051425,95109.0,95106.0,0.01051458]
[1768693270336,0.06324339,95113.0,95106.0,0.01051458]
[1768693270337,0.0106741,95113.0,95109.0,0.01051425]
[1768693270944,0.0106741,95113.0,95109.0,0.06308549]
[1768693271195,0.0001603,95113.0,95110.0,0.06308473]
[1768693271394,0.0001603,95113.0,95111.0,0.05256986]
[1768693271623,0.0001603,95113.0,95110.0,0.06308467]
[1768693271933,0.0001603,95113.0,95110.0,0.01051414]
[1768693273266,0.0001603,95113.0,95108.0,0.06308597]
[1768693273267,0.0001603,95113.0,95108.0,0.01051436]
[1768693273672,0.0106741,95113.0,95109.0,0.01051425]
[1768693274724,0.0106741,95113.0,95109.0,0.06308546]
[1768693275343,0.0106741,95113.0,95110.0,0.01051414]
[1768693276388,0.01051392,95112.0,95108.0,0.01051436]
[1768693276817,0.0001603,95113.0,95109.0,0.01051425]
[1768693277155,0.0001603,95113.0,95109.0,0.06308542]
[1768693277784,0.0001603,95113.0,95110.0,0.05257063]
[1768693278319,0.0001603,95113.0,95110.0,0.01051414]
[1768693278525,0.0106741,95113.0,95110.0,0.01051414]
[1768693278658,0.01051403,95111.0,95107.0,0.0630864]
[1768693278867,0.01051403,95111.0,95107.0,0.06308676]
[1768693279978,0.0106741,95113.0,95109.0,0.01051425]
[1768693280391,0.01051392,95112.0,95109.0,0.01051425]
[1768693281965,0.01051403,95111.0,95106.0,0.01051458]
[1768693282215,0.01051403,95111.0,95107.0,0.01051447]
[1768693282650,0.06308464,95111.0,95107.0,0.01051447]
[1768693283350,0.01051414,95110.0,95107.0,0.01051447]
[1768693283930,0.01051414,95110.0,95107.0,0.06308665]
[1768693284335,0.01051414,95110.0,95107.0,0.06308667]
[1768693284894,0.01051403,95111.0,95108.0,0.01051436]
[1768693285317,0.01051403,95111.0,95108.0,0.06308611]
[1768693285819,0.01051403,95111.0,95108.0,0.01051436]
[1768693286298,0.01051403,95111.0,95107.0,0.01051447]
[1768693287039,0.0106741,95113.0,95109.0,0.01051425]
[1768693288853,0.0106741,95113.0,95109.0,0.06308545]
[1768693290284,0.06308398,95112.0,95108.0,0.01051436]
[1768693290752,0.06308457,95111.0,95107.0,0.01051447]
[1768693290986,0.01051392,95112.0,95108.0,0.01051436]
[1768693292211,0.01051392,95112.0,95109.0,0.01051425]
[1768693292561,0.06308469,95111.0,95107.0,0.01051447]
[1768693293100,0.01051403,95111.0,95107.0,0.01051447]
[1768693293305,0.01051414,95110.0,95107.0,0.01051447]
[1768693293917,0.01051403,95111.0,95107.0,0.06308658]
[1768693295012,0.01051403,95111.0,95108.0,0.01051436]
[1768693296003,0.01051403,95111.0,95108.0,0.06308615]
[1768693296773,0.01051403,95111.0,95107.0,0.01051447]
[1768693296974,0.01051403,95111.0,95107.0,0.06308636]
[1768693297182,0.01051392,95112.0,95108.0,0.0630861]
[1768693298273,0.06308353,95112.0,95108.0,0.01051436]
[1768693298481,0.05257119,95110.0,95105.0,0.05257342]
[1768693298699,0.01051403,95111.0,95104.0,0.0105148]
[1768693298909,0.01051425,95109.0,95103.0,0.01051491]
[1768693299112,0.01051469,95105.0,95101.0,0.13842819]
[1768693299325,0.01051469,95105.0,95102.0,0.01051502]
[1768693299528,0.01051469,95105.0,95102.0,0.06309012]
[1768693299750,0.11248123,95104.0,95094.0,0.01051591]
[1768693299983,0.25476298,95112.0,95094.0,0.01051591]
[1768693299984,0.01051524,95100.0,95095.0,0.01051579]
[1768693300597,0.01051524,95100.0,95096.0,0.01051568]
[1768693300802,0.01051524,95100.0,95097.0,0.01051557]
[1768693301023,0.01051491,95103.0,95099.0,0.01051535]
[1768693303581,0.06308951,95103.0,95099.0,0.01051535]
[1768693304219,0.01051491,95103.0,95099.0,0.01051535]
[1768693304500,0.01051491,95103.0,95099.0,0.06309202]
[1768693305959,0.01051491,95103.0,95100.0,0.01051524]
[1768693306382,0.01051491,95103.0,95100.0,0.0630914]
[1768693306787,0.01051469,95105.0,95101.0,0.01051513]
[1768693308075,0.01051469,95105.0,95101.0,0.06309065]
[1768693308278,0.01051458,95106.0,95103.0,0.01051491]
[1768693308418,0.06308753,95106.0,95103.0,0.01051491]
[1768693308827,0.01051458,95106.0,95103.0,0.01051491]
[1768693310985,0.06308783,95106.0,95102.0,0.01051502]
[1768693313005,0.01051469,95105.0,95102.0,0.01051502]
[1768693314859,0.01051447,95107.0,95093.0,0.01051602]
[1768693314860,0.01051546,95098.0,95093.0,0.01051602]
[1768693315074,0.06309327,95098.0,95093.0,0.01051602]
[1768693315278,0.01051568,95096.0,95093.0,0.01051602]
[1768693315488,0.01042499,95096.0,95093.0,0.01051602]
[1768693315684,0.01051579,95095.0,95092.0,0.01051613]
[1768693315885,0.01042499,95096.0,95092.0,0.01051613]
[1768693316820,0.01042499,95096.0,95092.0,0.06309674]
[1768693317042,0.01042499,95096.0,95093.0,0.01051602]
[1768693317873,0.01042499,95096.0,95093.0,0.06309611]
[1768693318813,0.01051546,95098.0,95095.0,0.01051579]
[1768693319043,0.06309299,95098.0,95094.0,0.00609612]
[1768693319257,0.06309352,95097.0,95094.0,0.00609612]
[1768693319470,0.01051579,95095.0,95092.0,0.01051613]
[1768693319685,0.06309512,95095.0,95090.0,0.06309807]
[1768693319953,0.01051579,95095.0,95091.0,0.06309732]
[1768693320192,0.01051579,95095.0,95092.0,0.06309667]
[1768693320417,0.01051546,95098.0,95094.0,0.01051591]
[1768693320633,0.06309097,95101.0,95096.0,0.06309376]
[1768693320867,0.06316052,95101.0,95096.0,0.06309376]
[1768693321079,0.01058468,95101.0,95096.0,0.06309376]
[1768693321528,6.955e-05,95101.0,95098.0,0.06309264]
[1768693321741,6.955e-05,95101.0,95098.0,0.01051546]
[1768693324935,0.0630917,95100.0,95094.0,0.01051591]
[1768693325092,0.01051524,95100.0,95095.0,0.01051579]
[1768693325297,0.0525772,95099.0,95095.0,0.01051579]
[1768693325514,0.01051557,95097.0,95092.0,0.01051613]
[1768693325926,0.01051557,95097.0,95093.0,0.06309608]
[1768693326751,6.955e-05,95101.0,95100.0,0.05257623]
[1768693326971,6.955e-05,95101.0,95100.0,0.05239134]
[1768693327407,6.955e-05,95101.0,95098.0,0.06309234]
[1768693327613,6.955e-05,95101.0,95099.0,0.05257658]
[1768693328035,6.955e-05,95101.0,95100.0,0.05257623]
[1768693329328,6.955e-05,95101.0,95099.0,0.05257677]
[1768693329561,6.955e-05,95101.0,95100.0,0.05257623]
[1768693330264,0.05257131,95109.0,95103.0,0.0525741]
[1768693330563,0.01051414,95110.0,95103.0,0.0525741]
[1768693330819,0.0106741,95113.0,95104.0,0.0105148]
[1768693331062,0.0106741,95113.0,95110.0,0.01051414]
[1768693331063,0.0001603,95113.0,95110.0,0.01051414]
[1768693331312,0.0001603,95113.0,95110.0,0.06289977]
[1768693332029,0.0001603,95113.0,95110.0,0.01032929]
[1768693333238,0.0106741,95113.0,95110.0,0.01032929]
[1768693334709,0.0632432,95113.0,95110.0,0.01032929]
[1768693334952,0.0106741,95113.0,95110.0,0.01032929]
[1768693336832,0.06324336,95113.0,95109.0,0.01051425]
[1768693337424,0.0106741,95113.0,95109.0,0.01051425]